bitfinex-derivatives/quotes_ETHF0:USTF0_20251225
["timestamp","ask_amount","ask_price","bid_price","bid_amount"]
[1766650724533,0.00512215,2929.4,2928.9,0.00341485]
[1766650724736,3.414,2929.3,2928.9,0.00341485]
[1766650725128,3.414,2929.3,2928.4,3.414]
[1766650727133,3.414,2929.3,2928.0,3.41702446]
[1766650729643,3.414,2929.3,2928.0,0.00302446]
[1766650731343,3.414,2929.3,2926.6,11.67046235]
[1766650731542,0.17083,2928.9,2926.9,3.813]
[1766650731742,3.862,2928.8,2926.9,3.813]
[1766650732142,0.17083,2928.9,2926.9,3.813]
[1766650732339,0.00910311,2929.4,2926.9,3.813]
[1766650732340,0.00910311,2929.4,2926.9,3.98750674]
[1766650732534,12.12381,2929.3,2926.9,3.98750674]
[1766650732740,5.51181,2929.2,2926.9,3.98750674]
[1766650733147,0.17082,2929.1,2926.9,0.17450674]
[1766650733450,3.415,2929.0,2927.0,19.12714645]
[1766650733742,4.573,2928.9,2927.0,19.12714645]
[1766650734050,3.415,2928.8,2927.0,19.12714645]
[1766650734245,3.415,2928.8,2926.9,0.00356674]
[1766650734550,3.415,2928.8,2927.0,9.387]
[1766650736443,0.17083,2928.9,2927.0,9.387]
[1766650736643,3.52,2928.8,2927.0,9.387]
[1766650736842,3.415,2928.7,2927.0,9.387]
[1766650737045,0.00910311,2929.4,2927.0,9.387]
[1766650737240,8.542,2929.3,2927.2,0.17092]
[1766650737450,11.957,2929.3,2927.3,3.415]
[1766650738945,9.677,2929.2,2927.3,3.415]
[1766650739145,9.677,2929.2,2927.4,3.82174598]
[1766650739842,3.415,2929.1,2927.4,3.82174598]
[1766650740042,0.00910311,2929.4,2927.7,0.1709]
[1766650740338,3.416,2929.3,2927.8,17.37489]
[1766650741049,0.00910311,2929.4,2927.8,17.37489]
[1766650741242,0.00910311,2929.4,2928.1,0.17087]
[1766650741449,3.42510311,2929.4,2927.1,4.53538366]
[1766650741747,3.42510311,2929.4,2927.6,3.81043177]
[1766650741949,3.42510311,2929.4,2927.7,11.954]
[1766650742147,3.42510311,2929.4,2927.8,2.459]
[1766650747259,0.00910311,2929.4,2927.8,2.459]
[1766650747450,7.703,2929.3,2927.8,2.459]
[1766650747849,8.54910311,2929.4,2927.8,2.459]
[1766650747850,9.677,2929.2,2927.8,2.459]
[1766650748657,9.677,2929.2,2927.3,0.17092]
[1766650748958,9.677,2929.2,2927.4,17.937]
[1766650752957,9.677,2929.2,2927.5,14.526]
[1766650753163,9.677,2929.2,2927.5,17.942]
[1766650754458,0.1708,2929.3,2927.5,17.942]
[1766650754762,9.675,2929.2,2927.5,17.942]
[1766650756965,0.1708,2929.3,2927.5,17.942]
[1766650757161,6.259,2929.1,2927.5,17.942]
[1766650759763,0.1708,2929.3,2927.5,17.942]
[1766650759961,3.42510311,2929.4,2927.7,0.17089]
[1766650760156,3.42510311,2929.4,2927.8,9.57289]
[1766650760368,0.00910311,2929.4,2927.8,13.0966257]
[1766650760570,0.00910311,2929.4,2927.8,9.402]
[1766650760769,0.00910311,2929.4,2928.1,0.17087]
[1766650760956,0.00910311,2929.4,2928.2,9.402]
[1766650761156,0.00910311,2929.4,2928.3,8.54]
[1766650761862,3.416,2929.8,2928.3,8.54]
[1766650762569,3.416,2929.8,2928.4,9.402]
[1766650762771,0.00512215,2929.3,2928.8,0.00512214]
[1766650763669,1e-08,2929.3,2928.8,5.99112214]
[1766650764258,4.669577,2929.7,2928.8,5.99112214]
[1766650764665,1.254577,2929.7,2928.8,5.99112214]
[1766650764869,0.00419794,2929.7,2928.8,5.99112214]
[1766650765063,5.255,2930.2,2928.8,5.99112214]
[1766650765264,0.00512215,2929.8,2928.8,5.99112214]
[1766650765459,2.215e-05,2929.8,2928.8,5.99112214]
[1766650766068,0.00355319,2929.8,2928.8,5.99112214]
[1766650766472,4.988,2930.4,2928.8,5.99112214]
[1766650767462,0.00512215,2929.9,2928.8,5.99112214]
[1766650767666,4.99186249,2930.4,2928.8,6.16195214]
[1766650769676,0.00512215,2929.9,2928.8,6.16195214]
[1766650769976,4.99186249,2930.4,2928.8,6.16195214]
[1766650771279,1.486e-05,2929.9,2928.8,6.16195214]
[1766650772888,1.486e-05,2929.9,2928.9,9.399]
[1766650773177,3.415,2929.8,2928.9,9.399]
[1766650775274,1.486e-05,2929.9,2928.9,9.399]
[1766650775275,3.41501486,2929.9,2928.9,9.399]
[1766650775477,1.486e-05,2929.9,2928.9,9.399]
[1766650778889,1.486e-05,2929.9,2929.0,9.399]
[1766650779090,1.486e-05,2929.9,2929.0,9.40157855]
[1766650782395,1.486e-05,2929.9,2929.0,0.00257855]
[1766650782598,3.414,2929.8,2929.0,3.41657855]
[1766650785385,7.009,2929.8,2928.8,0.00512214]
[1766650786396,7.009,2929.8,2928.8,0.00923248]
[1766650789701,7.009,2929.8,2928.8,3.248e-05]
[1766650790493,7.009,2929.8,2929.0,0.00512215]
[1766650792897,6.251,2929.7,2929.0,0.00512215]
[1766650793099,9.666,2929.7,2929.0,0.00512215]
[1766650794702,3.415,2929.6,2929.0,0.00512215]
[1766650796006,3.415,2929.6,2928.8,3.248e-05]
[1766650796903,3.415,2929.6,2928.9,0.00512215]
[1766650798008,3.415,2929.6,2928.3,3.415]
[1766650798911,7.409,2929.5,2928.7,0.00512215]
[1766650799712,9.665,2929.4,2928.7,0.00512215]
[1766650800410,0.17078,2929.8,2928.7,0.00512215]
[1766650800598,6.25,2929.5,2928.7,0.00512215]
[1766650800802,3.415,2929.4,2928.7,0.00512215]
[1766650802206,1.24476855,2929.9,2928.7,0.00512215]
[1766650802608,3.415,2929.8,2928.7,0.00512215]
[1766650804812,3.415,2929.8,2928.8,3.415]
[1766650805413,5.01,2929.7,2928.8,3.415]
[1766650805720,8.425,2929.7,2928.8,3.415]
[1766650807813,1.486e-05,2929.9,2928.8,3.415]
[1766650808116,3.415,2929.8,2928.8,3.415]
[1766650808320,1.486e-05,2929.9,2928.8,3.415]
[1766650808520,3.415,2929.8,2928.8,3.415]
[1766650808919,1.486e-05,2929.9,2928.8,3.415]
[1766650809123,3.41501486,2929.9,2928.8,3.415]
[1766650811220,1.486e-05,2929.9,2928.8,3.415]
[1766650812414,1.486e-05,2929.9,2928.8,3.58583]
[1766650812721,1.486e-05,2929.9,2929.1,0.17081]
[1766650813019,0.00386249,2930.4,2929.2,17.936]
[1766650813925,0.00512215,2930.1,2929.2,17.936]
[1766650814522,0.17068,2931.4,2929.4,0.17079]
[1766650814725,3.415,2931.3,2929.5,3.415]
[1766650814926,3.415,2931.3,2929.5,7.08378218]
[1766650815122,2.212,2931.3,2929.5,7.08378218]
[1766650815430,3.415,2931.2,2929.5,7.25457218]
[1766650815729,3.415,2931.1,2929.5,7.25457218]
[1766650816023,0.00375568,2931.2,2929.5,7.25457218]
[1766650816214,3.415,2931.1,2929.5,7.25457218]
[1766650819528,0.00375568,2931.2,2929.5,7.25457218]
[1766650819731,3.414,2931.1,2929.5,7.25457218]
[1766650820036,3.414,2931.1,2929.6,0.17078]
[1766650820237,0.00375568,2931.2,2929.6,0.17078]
[1766650820238,0.00375568,2931.2,2929.7,5.982]
[1766650820541,3.414,2931.1,2929.8,3.414]
[1766650820836,3.414,2931.1,2930.2,0.00512215]
[1766650821039,3.414,2931.1,2930.3,3.414]
[1766650821541,3.41775568,2931.2,2930.3,3.414]
[1766650822435,0.00375568,2931.2,2930.3,3.414]
[1766650822635,0.17062,2932.4,2930.3,3.414]
[1766650822834,13.24214205,2932.3,2930.3,3.414]
[1766650823342,13.41277205,2932.3,2930.3,3.414]
[1766650823533,13.4160485,2932.3,2930.3,3.414]
[1766650823934,13.39907537,2932.3,2930.3,3.414]
[1766650824631,12.15790645,2932.3,2930.3,3.414]
[1766650824942,13.39907537,2932.3,2930.3,3.414]
[1766650825137,6.243,2932.2,2930.3,3.414]
[1766650825348,3.414,2932.1,2930.3,3.414]
[1766650826349,4.63435859,2932.1,2930.3,3.414]
[1766650827948,4.65582038,2932.1,2930.3,3.414]
[1766650828847,3.414,2932.1,2930.3,3.414]
[1766650829046,4.65426011,2932.1,2930.3,3.414]
[1766650829246,3.414,2932.1,2930.3,3.414]
[1766650829642,3.414,2932.1,2930.2,3.63287215]
[1766650829643,0.17065,2931.9,2930.2,0.00512215]
[1766650829848,0.17067,2931.7,2930.4,3.413]
[1766650830044,6.241,2931.6,2930.2,0.00512215]
[1766650830248,0.17068,2931.4,2930.1,3.413]
[1766650830747,0.17068,2931.4,2929.1,4.19638217]
[1766650830944,0.17068,2931.4,2929.2,14.52]
[1766650831155,0.17068,2931.4,2929.2,14.52250769]
[1766650831345,0.00512214,2930.6,2930.0,0.00512215]
[1766650831546,0.00512214,2930.6,2930.0,3.41812215]
[1766650831742,9.654,2931.6,2930.0,3.41812215]
[1766650831941,9.654,2931.6,2930.0,11.95212215]
[1766650834149,0.17065,2932.0,2930.0,11.95212215]
[1766650834355,0.00327645,2932.3,2930.0,11.85212215]
[1766650834554,0.00327645,2932.3,2930.1,3.65696348]
[1766650835354,0.00512215,2931.5,2930.9,0.00512215]
[1766650835554,0.00327645,2932.3,2931.0,9.398]
[1766650839752,0.00327645,2932.3,2931.1,8.097]
[1766650840856,0.00327645,2932.3,2931.2,9.397]
[1766650842256,0.00327645,2932.3,2930.9,0.00512215]
[1766650842462,0.00327645,2932.3,2931.2,5.984]
[1766650842763,0.00327645,2932.3,2931.3,3.413]
[1766650842954,0.00327645,2932.3,2931.3,3.4172061]
[1766650844061,0.00327645,2932.3,2931.4,3.413]
[1766650849366,0.00327645,2932.3,2931.3,0.0042061]
[1766650849563,0.00327645,2932.3,2931.4,9.395]
[1766650849862,0.00327645,2932.3,2931.3,0.0042061]
[1766650850066,0.00327645,2932.3,2931.4,9.395]
[1766650851667,0.00327645,2932.3,2931.5,9.395]
[1766650855864,0.00327645,2932.3,2931.3,0.0042061]
[1766650856071,0.00327645,2932.3,2931.4,9.394]
[1766650856261,0.00327645,2932.3,2931.5,3.454]
[1766650861864,0.00327645,2932.3,2931.5,5.306]
[1766650862062,0.00327645,2932.3,2931.6,3.412]
[1766650863073,0.00327645,2932.3,2931.3,0.0042061]
[1766650863268,0.00327645,2932.3,2931.4,9.394]
[1766650864468,3.412,2932.2,2931.4,3.412]
[1766650864668,3.412,2932.2,2931.3,0.0042061]
[1766650864971,3.412,2932.2,2931.4,3.412]
[1766650865774,3.412,2932.2,2931.3,0.0042061]
[1766650865973,3.412,2932.2,2931.4,3.412]
[1766650867377,1.0974487,2932.1,2930.9,0.00512215]
[1766650867673,0.92680567,2932.0,2931.0,3.412]
[1766650867974,3.412,2931.9,2931.0,3.412]
[1766650868474,3.412,2931.9,2931.0,3.41598174]
[1766650869776,3.412,2931.9,2931.0,0.00398174]
[1766650869969,3.412,2931.9,2931.1,3.412]
[1766650874885,3.412,2931.9,2931.0,0.00398174]
[1766650875079,3.412,2931.9,2931.1,3.412]
[1766650879992,3.412,2931.9,2931.0,0.00398174]
[1766650880189,3.412,2931.9,2931.1,3.412]
[1766650882190,3.412,2931.9,2931.0,0.00398174]
[1766650882388,3.412,2931.9,2931.1,3.413]
[1766650883688,3.412,2931.9,2931.0,0.00398174]
[1766650883990,0.17066,2931.8,2930.9,3.41300001]
[1766650884190,0.17066,2931.8,2930.9,1e-08]
[1766650885095,0.00512214,2931.6,2930.9,0.00269205]
[1766650885392,3.413,2931.5,2930.9,0.00269205]
[1766650889592,0.00512214,2931.6,2930.9,0.00269205]
[1766650890391,0.00512214,2931.6,2931.0,3.413]
[1766650897601,0.17069,2931.3,2930.0,3.06856319]
[1766650897806,9.642,2931.2,2930.0,6.48156319]
[1766650898604,9.642,2931.2,2930.3,0.00512215]
[1766650903413,9.8127,2931.2,2930.0,0.00250286]
[1766650903619,0.17071,2931.0,2930.0,0.00250286]
[1766650903821,3.413,2930.9,2930.0,0.00250286]
[1766650904512,3.413,2930.9,2930.2,0.00512215]
[1766650904808,3.413,2930.9,2930.0,0.00250286]
[1766650905818,3.413,2930.9,2930.2,0.00512215]
[1766650906321,3.413,2930.9,2930.0,0.00250286]
[1766650907421,3.413,2930.9,2930.2,0.00512215]
[1766650914228,3.58371,2930.9,2930.0,0.00250286]
[1766650915231,3.58371,2930.9,2930.2,0.00512215]
[1766650916330,3.58371,2930.9,2930.0,0.00250286]
[1766650917330,3.58371,2930.9,2930.2,0.00341485]
[1766650917731,3.58371,2930.9,2930.0,0.00250286]
[1766650919828,3.413,2930.9,2930.0,0.00250286]
[1766650920027,3.413,2930.9,2930.1,3.414]
[1766650921033,3.413,2930.9,2930.0,0.00250286]
[1766650922636,3.413,2930.9,2929.1,11.87792515]
[1766650922938,3.413,2930.9,2929.3,2.03]
[1766650923937,3.413,2930.9,2929.3,2.0338445]
[1766650924432,3.58371,2930.9,2929.4,3.414]
[1766650924737,1.10681128,2930.8,2929.4,3.414]
[1766650924939,6.226,2930.7,2929.4,3.414]
[1766650925132,3.414,2930.6,2929.4,3.414]
[1766650925432,3.414,2930.6,2929.3,0.0038445]
[1766650925638,3.414,2930.6,2929.3,3.4178445]
[1766650926440,3.58473,2930.6,2929.3,3.4178445]
[1766650926742,1.10631769,2930.5,2929.3,0.0038445]
[1766650927034,8.535,2930.4,2929.3,0.0038445]
[1766650927243,3.58475,2930.3,2928.2,0.17087]
[1766650927439,0.00512215,2929.5,2928.3,5.952]
[1766650927639,3.41912215,2929.5,2928.3,5.952]
[1766650928346,3.42167306,2929.5,2928.3,5.95569927]
[1766650929831,3.42167306,2929.5,2928.3,3.41769927]
[1766650930435,3.42167306,2929.5,2928.3,0.00369927]
[1766650930645,3.42167306,2929.5,2928.3,3.41769927]
[1766650931446,0.1708,2929.4,2926.9,0.17094]
[1766650931745,0.1708,2929.4,2926.1,7.9603518]
[1766650931746,0.1708,2929.4,2927.3,14.517]
[1766650932649,0.1708,2929.4,2927.3,14.51983187]
[1766650934349,4.67747168,2929.5,2927.3,14.51983187]
[1766650934350,0.1708,2929.3,2927.3,14.51983187]
[1766650934541,3.415,2929.2,2927.3,14.51983187]
[1766650934843,1.26347168,2929.5,2927.5,0.1709]
[1766650935045,1.26347168,2929.5,2927.6,3.415]
[1766650935046,5.723,2929.4,2927.6,3.415]
[1766650939847,1.26347168,2929.5,2927.6,3.415]
[1766650940046,4.273,2929.4,2927.6,3.415]
[1766650940653,4.273,2929.4,2927.6,3.5859]
[1766650941155,3.415,2929.3,2927.9,0.17089]
[1766650941354,3.415,2929.3,2928.0,9.399]
[1766650941551,3.415,2929.3,2928.1,8.539]
[1766650942057,3.3153,2929.3,2928.1,8.539]
[1766650942259,2.8966,2929.3,2928.1,8.539]
[1766650942454,2.3782,2929.3,2928.1,8.539]
[1766650942752,1.10397168,2929.5,2928.1,8.70987]
[1766650942954,3.415,2929.8,2928.3,0.17086]
[1766650943158,3.415,2929.8,2928.4,3.415]
[1766650943358,3.415,2929.8,2928.4,3.58586]
[1766650943559,10.372,2931.4,2928.5,0.17085]
[1766650943746,5.926,2930.5,2928.6,5.984]
[1766650943948,0.00512215,2929.8,2929.3,0.00512214]
[1766650944564,3.415,2930.0,2929.3,0.00512214]
[1766650945561,0.00512215,2929.9,2929.3,0.00512214]
[1766650945959,14.493,2929.8,2928.0,3.415]
[1766650946160,3.415,2929.7,2928.0,3.415]
[1766650946459,9.641,2929.6,2928.0,3.415]
[1766650947058,9.641,2929.6,2928.5,0.00512215]
[1766650947459,9.81179,2929.6,2926.8,0.17095]
[1766650947658,11.06509783,2929.6,2927.4,11.953]
[1766650947859,11.06509783,2929.6,2927.5,5.984]
[1766650948260,40.8,2929.5,2927.5,5.984]
[1766650951258,6.231,2929.4,2927.5,5.984]
[1766650951462,3.415,2929.3,2927.5,5.984]
[1766650953572,3.58581,2929.3,2927.6,3.415]
[1766650953963,0.17081,2929.2,2927.6,3.415]
[1766650954966,0.93402057,2929.1,2927.6,3.415]
[1766650955166,10.58602057,2929.0,2927.6,3.415]
[1766650955370,9.652,2929.0,2927.6,3.415]
[1766650955574,9.652,2929.0,2927.4,5.984]
[1766650955873,9.82282,2929.0,2927.4,5.984]
[1766650956669,9.82282,2929.0,2927.3,0.00283187]
[1766650956670,9.652,2929.0,2927.3,0.00283187]
[1766650956874,0.17085,2928.6,2927.3,0.00283187]
[1766650957066,0.00512215,2928.2,2927.3,0.00283187]
[1766650957261,6.117,2928.1,2927.3,0.00283187]
[1766650958971,6.117,2928.1,2926.9,3.416]
[1766650959170,0.93249407,2928.0,2926.4,3.416]
[1766650959372,7.53661641,2928.1,2926.4,3.416]
[1766650959577,0.93252258,2928.0,2926.4,3.416]
[1766650959775,7.53661641,2928.1,2926.4,3.416]
[1766650959977,0.93252046,2928.0,2926.4,3.416]
[1766650960178,0.17088,2928.0,2926.4,3.42036057]
[1766650960670,0.17089,2927.9,2926.4,0.00436057]
[1766650960871,3.416,2927.7,2924.4,7.67669082]
[1766650961173,4.34766388,2927.8,2923.0,0.003]
[1766650961174,3.587,2926.0,2923.0,0.003]
[1766650961366,3.416,2925.8,2923.0,3.419]
[1766650961569,0.00512215,2924.7,2923.0,3.59017]
[1766650961768,3.416,2924.6,2923.1,3.64792968]
[1766650961966,0.00332852,2924.6,2923.1,3.65109602]
[1766650962171,3.41932852,2924.6,2923.1,3.65109602]
[1766650962377,0.00512215,2924.7,2923.1,3.65109602]
[1766650962572,8.542,2925.9,2923.1,3.82225602]
[1766650962771,9.658,2925.8,2923.1,3.82225602]
[1766650962972,0.17095,2926.8,2923.3,0.17115]
[1766650963173,18.202,2926.1,2923.4,3.417]
[1766650963373,0.00326272,2926.1,2923.5,5.986]
[1766650963569,15.205,2926.0,2924.5,0.00512215]
[1766650963777,0.00326272,2926.1,2924.5,0.00512215]
[1766650964078,6.243,2925.9,2924.5,0.00512215]
[1766650964274,0.00326272,2926.1,2924.5,0.00512215]
[1766650964476,4.193,2926.0,2924.5,0.00512215]
[1766650964780,0.00512215,2925.5,2924.5,0.00512215]
[1766650964979,1.495,2925.4,2924.5,0.00512215]
[1766650965281,3.417,2925.3,2923.4,3.417]
[1766650965581,18.206,2925.2,2923.4,3.417]
[1766650966073,0.00512215,2925.5,2923.5,5.988]
[1766650966277,6.245,2925.1,2924.2,2.215e-05]
[1766650966470,11.963,2925.0,2924.2,2.215e-05]
[1766650966668,11.963,2925.0,2923.2,3.418]
[1766650967085,34.183,2925.4,2923.1,0.00316634]
[1766650967379,0.17111,2924.5,2921.2,3.418]
[1766650967574,1.19960334,2924.3,2919.6,0.17139]
[1766650967781,0.17124,2922.1,2919.3,0.30665726]
[1766650967979,0.17124,2922.1,2919.2,0.17141]
[1766650968169,0.00513119,2921.0,2919.6,0.17139]
[1766650968373,0.00275248,2922.1,2919.7,0.17138]
[1766650968569,11.964,2922.0,2919.2,0.00364889]
[1766650968771,6.246,2921.9,2919.3,12.037]
[1766650968969,40.8,2921.8,2919.3,15.72583686]
[1766650969168,0.00275248,2922.1,2919.3,15.72583686]
[1766650969169,0.00275248,2922.1,2919.3,3.68883686]
[1766650969384,0.00513119,2921.0,2920.4,0.00513119]
[1766650969582,0.00275248,2922.1,2920.5,3.419]
[1766650969894,6.247,2922.0,2920.5,3.419]
[1766650970178,6.247,2922.0,2920.4,0.00513119]
[1766650970179,0.00275248,2922.1,2920.4,0.00513119]
[1766650970371,3.419,2922.6,2920.6,3.73813288]
[1766650970577,3.419,2922.6,2920.6,0.17133]
[1766650970972,3.419,2922.6,2920.7,3.61934642]
[1766650971284,3.547,2923.0,2920.8,3.59132]
[1766650971479,0.00279158,2923.0,2921.0,0.17131]
[1766650971785,3.119e-05,2922.3,2921.7,0.00513119]
[1766650971976,0.00279158,2923.0,2921.8,5.021]
[1766650972778,3.42,2923.6,2921.9,3.59590732]
[1766650972978,3.42,2923.6,2921.7,0.00882871]
[1766650973185,3.42,2923.6,2921.8,3.42]
[1766650973480,34.206,2923.5,2921.7,0.00882871]
[1766650973780,34.21022477,2923.5,2921.7,0.00882871]
[1766650974088,0.00513119,2922.9,2921.7,0.00882871]
[1766650974287,3.42,2922.8,2921.7,0.00882871]
[1766650974585,0.00513119,2922.9,2921.8,3.421]
[1766650974886,0.00422477,2923.5,2921.8,11.973]
[1766650975077,34.211,2924.3,2921.8,11.973]
[1766650975078,3.421,2924.7,2922.3,0.17121]
[1766650975277,3.421,2924.6,2922.4,9.414]
[1766650975483,3.421,2924.6,2922.4,13.1705798]
[1766650975971,3.421,2924.6,2923.2,0.00513119]
[1766650975972,3.42454772,2924.6,2923.2,0.00513119]
[1766650976176,0.00354772,2924.6,2923.3,3.421]
[1766650976372,0.00354772,2924.6,2923.4,4.22]
[1766650976574,0.3418,2925.3,2923.3,3.61638307]
[1766650976785,3.421,2925.2,2923.2,0.00513119]
[1766650977086,3.421,2925.2,2923.4,2.381]
[1766650977679,3.42460334,2925.2,2923.4,2.381]
[1766650977874,3.42460334,2925.2,2923.5,5.993]
[1766650978084,3.42460334,2925.2,2923.5,9.414]
[1766650979385,18.223,2925.1,2923.5,9.414]
[1766650979979,18.223,2925.1,2923.2,0.00513119]
[1766650979980,1.10107003,2925.0,2923.2,0.00513119]
[1766650980183,0.93001003,2924.9,2923.2,0.00513119]
[1766650980384,18.224,2924.8,2923.3,3.421]
[1766650980585,0.00360334,2925.2,2923.3,3.421]
[1766650980888,12.9045004,2925.1,2923.4,3.421]
[1766650981088,7.1805004,2925.0,2923.4,3.421]
[1766650981291,0.9305004,2924.9,2923.4,3.421]
[1766650981589,3.421,2924.8,2923.4,3.421]
[1766650981891,3.421,2924.8,2923.2,0.00513119]
[1766650981892,0.00360334,2925.2,2923.2,0.00513119]
[1766650982295,0.93813205,2925.1,2923.2,0.00513119]
[1766650982486,0.00360334,2925.2,2923.2,0.00513119]
[1766650983085,0.93850204,2925.1,2923.2,0.00513119]
[1766650983288,0.93850204,2925.0,2923.2,0.00513119]
[1766650985790,0.17106,2924.9,2923.2,0.00513119]
[1766650985986,1.37066334,2924.9,2923.2,0.00513119]
[1766650986185,1.19960334,2924.7,2923.2,0.00513119]
[1766650986386,0.93850204,2924.6,2923.2,0.00513119]
[1766650986588,0.93850204,2924.5,2923.2,0.00513119]
[1766650986886,0.93850204,2924.4,2923.2,0.00513119]
[1766650987091,1.19960334,2924.0,2921.6,0.17125]
[1766650987283,2.13810538,2923.9,2921.6,0.17125]
[1766650987484,1.19960334,2923.7,2921.6,0.17125]
[1766650987693,0.93850204,2923.6,2921.6,0.17125]
[1766650987890,0.93850204,2923.5,2920.6,0.88160172]
[1766650988089,0.28050204,2923.4,2922.3,0.00513119]
[1766650988387,1.20473453,2924.1,2922.3,0.00513119]
[1766650988589,0.00513119,2924.1,2922.3,0.00513119]
[1766650988796,1.20473453,2924.1,2922.3,0.00513119]
[1766650988995,1.19960334,2924.0,2922.3,0.00513119]
[1766650989583,1.20473453,2924.1,2922.3,0.00513119]
[1766650989800,1.19960334,2924.0,2922.3,0.00513119]
[1766650989994,1.19960334,2923.9,2922.3,0.00513119]
[1766650990296,1.19960334,2923.7,2922.3,0.00513119]
[1766650990694,1.19960334,2923.8,2922.3,0.00513119]
[1766650991190,1.19960334,2923.7,2922.3,0.00513119]
[1766650991389,1.19960334,2923.8,2922.3,0.00513119]
[1766650992298,1.19960334,2923.9,2922.3,0.00513119]
[1766650992700,1.20473453,2924.1,2922.5,0.1712]
[1766650992999,0.00513119,2924.1,2922.5,0.1712]
[1766650993499,1.19960334,2923.9,2922.3,0.00513119]
[1766650994290,1.19960334,2923.8,2922.3,0.00513119]
[1766650994498,1.19960334,2923.9,2922.3,0.00513119]
[1766650994898,1.19960334,2923.8,2922.3,0.00513119]
[1766650997402,1.19960334,2923.7,2921.7,0.00369752]
[1766650997604,1.19960334,2922.3,2919.8,0.17136]
[1766650997805,1.19960334,2921.8,2919.8,0.17136]
[1766650997997,1.19960334,2921.4,2919.6,3.57783026]
[1766650998197,1.19960334,2921.3,2919.0,0.1714]
[1766650998498,0.00513119,2920.4,2919.0,0.17554588]
[1766650998696,1.19960334,2919.6,2915.8,9.72046525]
[1766650998901,1.19960334,2919.8,2917.7,0.17148]
[1766650999206,1.19960334,2920.0,2917.8,3.73073837]
[1766650999392,1.19960334,2919.6,2917.8,3.73073837]
[1766650999598,0.00514014,2919.0,2917.8,0.00423658]
[1766650999797,0.00777969,2919.0,2917.8,0.00423658]
[1766650999997,1.19960334,2920.1,2917.8,6.00423658]
[1766651000196,1.19960334,2920.9,2917.9,3.65723497]
[1766651000400,0.94190288,2920.8,2917.9,7.07323497]
[1766651000605,1.19960334,2921.4,2919.0,0.17141]
[1766651000794,0.94204081,2921.3,2919.0,0.17141]
[1766651000996,0.00514014,2920.4,2919.9,0.00514014]
[1766651001299,0.00514014,2920.4,2919.9,0.0057597]
[1766651001805,0.00347013,2921.3,2920.0,3.68688958]
[1766651002205,1.19960334,2922.8,2920.2,0.17134]
[1766651002402,0.93721042,2922.7,2920.2,0.17134]
[1766651002603,0.00514014,2921.7,2920.3,3.81459134]
[1766651002795,1.19960334,2922.9,2920.3,3.81459134]
[1766651002995,0.93723672,2922.8,2920.5,0.17132]
[1766651003205,0.93723672,2922.8,2919.9,0.00241064]
[1766651003206,2.13684006,2922.7,2919.9,0.00241064]
[1766651003409,1.19960334,2922.5,2919.9,0.00241064]
[1766651003602,0.93723672,2922.4,2920.0,3.56503468]
[1766651003908,0.00514014,2921.5,2920.9,0.00514014]
[1766651004309,0.93655789,2921.4,2920.9,4.014e-05]
[1766651004500,0.93655789,2921.3,2920.9,4.014e-05]
[1766651004700,0.93655789,2921.2,2919.9,0.00241064]
[1766651004901,0.93655789,2921.1,2919.9,0.00241064]
[1766651005106,2.13616123,2921.0,2919.9,1.064e-05]
[1766651005406,1.19960334,2920.6,2918.0,0.17146]
[1766651005603,0.00514014,2919.6,2919.0,0.00514014]
[1766651006111,1.19960334,2921.0,2919.0,0.00514014]
[1766651006410,0.93441504,2920.9,2919.0,0.00900141]
[1766651006609,0.93441504,2920.8,2919.0,0.00900141]
[1766651006801,0.93441504,2920.7,2919.0,0.00900141]
[1766651007002,0.93441504,2920.6,2919.0,0.00900141]
[1766651007312,4.014e-05,2920.1,2919.0,0.00900141]
[1766651007496,4.014e-05,2920.1,2919.1,0.1714]
[1766651007703,0.00302535,2921.0,2919.4,0.17138]
[1766651008001,0.00302535,2921.0,2919.5,4.14659664]
[1766651008407,0.00302535,2921.0,2919.5,0.17138]
[1766651008608,0.00302535,2921.0,2919.6,3.97521664]
[1766651008813,1.19960334,2922.4,2919.6,3.97521664]
[1766651008999,0.1712,2922.5,2919.9,0.17135]
[1766651009000,0.93463442,2922.3,2919.9,0.17135]
[1766651009303,0.93463442,2922.2,2920.3,0.17133]
[1766651009504,1.19960334,2922.9,2920.4,0.17132]
[1766651009706,41.7350641,2922.8,2921.4,0.00514014]
[1766651010013,0.00295242,2921.9,2919.7,0.17137]
[1766651010406,40.97420516,2922.8,2919.8,3.69165606]
[1766651010613,0.93519579,2922.7,2920.3,0.17133]
[1766651010908,0.00514013,2921.8,2921.2,0.00514014]
[1766651011810,0.00301516,2922.8,2921.2,0.00514014]
[1766651012004,0.00295242,2922.7,2921.2,0.00514014]
[1766651012907,0.00301516,2922.8,2921.2,0.00514014]
[1766651013108,0.00301516,2922.8,2921.3,3.68634582]
[1766651013707,0.00301516,2922.8,2921.2,0.17641014]
[1766651013708,0.00596758,2922.8,2921.2,0.00514014]
[1766651013913,0.93320349,2922.7,2921.2,0.00514014]
[1766651014211,0.3421,2922.7,2921.2,0.00514014]
[1766651014617,0.93366337,2922.6,2921.2,0.00514014]
[1766651014811,0.3421,2922.7,2921.2,0.00514014]
[1766651015003,41.1421,2922.7,2921.2,0.00514014]
[1766651015503,0.93417969,2922.6,2921.2,0.00514014]
[1766651015703,41.1421,2922.7,2921.2,0.00514014]
[1766651015913,0.93420376,2922.6,2921.2,4.014e-05]
[1766651016209,0.17122,2922.2,2920.3,0.00361969]
[1766651016414,1.10543376,2922.1,2920.3,0.00361969]
[1766651016716,1.19960334,2921.7,2920.3,1.969e-05]
[1766651017218,0.17128,2921.3,2920.3,1.969e-05]
[1766651017417,0.00514014,2921.1,2920.5,0.00514014]
[1766651018015,0.00291228,2920.9,2920.5,0.00514014]
[1766651018505,0.00514014,2921.1,2920.5,0.00514014]